Cogmind - Beta 12 X1 @@@ ROGUE MODE // 2022.07.13 @ 16:14:12 Player: Cyurio Result: Destroyed by G-47 Trooper with Particle Gun Performance ------------- Evolutions (0) 0 Regions Visited (2) 400 Robots Destroyed (20) 100 Value Destroyed (393) 393 Prototype IDs (2) 40 Alien Tech Used (0) 0 Bonus (0) 0 TOTAL SCORE: 933 Bonus ------- None Cogmind --------- Core Integrity 0/250 Matter 300/300 Energy 125/125 System Corruption 0% Temperature Cool (9) Movement Rolling (130) Ox2 Location -10/Mines Parts ------- > --- POWER (1) -------- Light Ion Engine > --- PROPULSION (2) --- Compact Wheel Compact Wheel > --- UTILITY (2) ------ Huge Storage Unit Signal Interpreter > --- WEAPON (2) ------- Hammer Mining Claw > --- INVENTORY (25) --- Light Treads Aluminum Leg Aluminum Leg Heat Sink Small Matter Pod (50) Weight Redist. System Transport Network Coupler Small Laser Assault Rifle Assault Rifle Assault Rifle Grenade Launcher Datajack Datajack Hammer Peak State ------------ > --- POWER ------------ Ion Engine > --- PROPULSION ------- Compact Wheel Compact Wheel > --- UTILITY ---------- Small Storage Unit Weight Redist. System > --- WEAPON ----------- Assault Rifle Mining Claw > --- INVENTORY -------- Light Ion Engine Light Treads Aluminum Leg Aluminum Leg Huge Storage Unit Small Matter Pod Assault Rifle Grenade Launcher [Rating: 8] Favorites ----------- Power Ion Engine Engine Ion Engine Propulsion Compact Wheel Leg Aluminum Leg Wheel Compact Wheel Utility Huge Storage Unit Device Structural Scanner Storage Huge Storage Unit Processor Signal Interpreter Weapon Mining Claw Ballistic Gun Assault Rifle Impact Weapon Hammer Slashing Weapon Mining Claw Build | -11 -10 -10 ------- Run | Scr Mat Min Slots Evolved . | . . . Power . | . . . Propulsion . | . . . Utility . | . . . Weapon . | . . . Parts Attached 15 | . 15 . Power 3 | . 3 . Engine 3 | . 3 . Core . | . . . Reactor . | . . . Propulsion 4 | . 4 . Treads . | . . . Leg 2 | . 2 . Wheel 2 | . 2 . Hover . | . . . Flight . | . . . Utility 4 | . 4 . Device 2 | . 2 . Storage 1 | . 1 . Processor 1 | . 1 . Hackware . | . . . Protection . | . . . Artifact . | . . . Weapon 4 | . 4 . Energy Gun . | . . . Energy Cannon . | . . . Ballistic Gun 2 | . 2 . Ballistic Cannon . | . . . Launcher . | . . . Special Weapon . | . . . Impact Weapon 1 | . 1 . Slashing Weapon 1 | . 1 . Piercing Weapon . | . . . Special Melee Weapon . | . . . Unidentified Prototypes . | . . . Parts Lost 4 | . 4 . Power 2 | . 2 . Propulsion 1 | . 1 . Utility 1 | . 1 . Weapon . | . . . Highest Loss Streak 3 | . 3 . To Critical Strikes . | . . . Average Slot Usage (%) 92 | . 92 100 Engine 14 | . 14 14 Leg 10 | . 10 . Wheel 17 | . 17 28 Device 3 | . 3 . Storage 14 | . 14 14 Processor 3 | . 3 14 Ballistic Gun 11 | . 11 . Impact Weapon 4 | . 4 14 Slashing Weapon 12 | . 11 14 Naked Turns . | . . . Heaviest Build 90 | 14 90 87 Greatest Support 38 | 20 38 32 Greatest Overweight (x) 2 | . 2 2 Average Overweight (x) 1 | . 1 2 Largest Inventory Capacity 25 | . 25 25 Average Capacity 18 | . 18 25 Most Carried 15 | . 15 15 Average Carried 10 | . 10 15 Final Capacity 25 | 8 25 25 Final Carried 15 | 6 15 15 Class Distribution -------------------- 100% | Mutant Dominant Class ---------------- Mutant | -10/Materials Mutant | -10/Mines Resources | -11 -10 -10 ----------- Run | Scr Mat Min Matter Collected 413 | 200 213 . Remotely . | . . . Salvage Created 632 | . 632 . Parts 37 | . 37 . Haulers Intercepted 2 | . 2 . Recyclers Shooed . | . . . Parts Field Recycled . | . . . Retrieved Matter . | . . . Parts Self-Destructed . | . . . Prevented . | . . . Kills | -11 -10 -10 ------- Run | Scr Mat Min Combat Hostiles Destroyed 12 | . 12 . Melee 9 | . 9 . Guns 3 | . 3 . Classes Destroyed 6 | . 6 . Worker 4 | . 4 . Tunneler 1 | . 1 . Hauler 2 | . 2 . Watcher 1 | . 1 . Swarmer 3 | . 3 . Grunt 9 | . 9 . Best Kill Streak 5 | . 5 . Combat Bots Only 4 | . 4 . Max Kills in Single Turn 1 | . 1 . Gunslinging . | . . . Exploded . | . . . Melee 1 | . 1 . Uniques/NPCs Destroyed . | . . . Combat | -11 -10 -10 -------- Run | Scr Mat Min Damage Taken 831 | . 806 25 Core 258 | . 245 13 Absorbed by Shields . | . . . Core Remaining (%) 100 | 100 . . Volleys Fired 3 | . 3 . Largest 2 | . 2 . Hottest 40 | . 40 . Shots Fired 6 | . 6 . Gun 6 | . 6 . Cannon . | . . . Launcher . | . . . Special . | . . . Kinetic 6 | . 6 . Thermal . | . . . Explosive . | . . . Electromagnetic . | . . . Robot Hit Streak 3 | . 3 . Robot Miss Streak . | . . . Penetration Max . | . . . Secondary Targets . | . . . Shots Hit Robots 44 | . 43 1 Core Hits 18 | . 18 . Critical Kills . | . . . Critical Parts Destroyed 1 | . 1 . Critical Strikes 1 | . 1 . Smash 1 | . 1 . Melee Attacks 70 | . 69 1 Impact 10 | . 10 . Slashing 60 | . 59 1 Piercing . | . . . Sneak Attacks 8 | . 8 . Combat Hostiles . | . . . Follow-up Attacks 2 | . 2 . Damage Inflicted 1194 | . 1169 25 Guns 39 | . 39 . Cannons . | . . . Explosions . | . . . Melee 1155 | . 1130 25 Ramming . | . . . Kinetic 39 | . 39 . Thermal . | . . . Explosive . | . . . Electromagnetic . | . . . Impact 312 | . 312 . Slashing 843 | . 818 25 Piercing . | . . . Highest Corruption . | . . . Average Corruption . | . . . Corruption Purged . | . . . Corruption Blocked . | . . . Overload Shots . | . . . Overflow Damage 155 | . 155 . Projectiles . | . . . Explosions . | . . . Melee 155 | . 155 . Knockbacks 2 | . 2 . Impact 2 | . 2 . Kinetic . | . . . Secondary . | . . . Self-Inflicted Damage . | . . . Shots . | . . . Rammed . | . . . Targets Rammed . | . . . Kicked . | . . . Crushed . | . . . Highest Temperature . | . . . Average Temperature . | . . . Received Heat Transfer 303 | . 288 15 Siege Activations . | . . . Robots Corrupted . | . . . Combat Hostiles . | . . . Parts Fried 3 | . 3 . Impact Corruptions 5 | . 5 . Robots Melted . | . . . Combat Hostiles . | . . . Parts Melted . | . . . Heat Transferred . | . . . Parts Sabotaged . | . . . Parts Stolen . | . . . Parts Stripped . | . . . Power Chain Reactions . | . . . Missiles Intercepted . | . . . Alert | -11 -10 -10 ------- Run | Scr Mat Min Peak Influence 240 | . 240 47 Initial 47 | . . 47 Average 95 | . 95 47 Maximum Alert Level 1 | . 1 . Low Security (%) 86 | . 86 100 Level 1 13 | . 13 . Level 2 . | . . . Level 3 . | . . . Level 4 . | . . . Level 5 . | . . . High Security . | . . . Max Security . | . . . Squads Dispatched 4 | . 4 . Investigation 2 | . 2 . Extermination . | . . . Reinforcement 2 | . 2 . Assault . | . . . Garrison . | . . . Intercept . | . . . Searches Triggered . | . . . Construction Impeded . | . . . Haulers Reinforced . | . . . Active Scanning Responses . | . . . Cargo Convoy Interrupts . | . . . Stealth | -11 -10 -10 --------- Run | Scr Mat Min Distress Signals 2 | . 2 . Communications Jammed . | . . . Distress Signals . | . . . Times Spotted 26 | . 24 2 Peak Tracking Total 6 | . 6 2 Tactical Retreats 3 | . 3 . Traps | -11 -10 -10 ------- Run | Scr Mat Min Traps Triggered 3 | . 3 . Indirectly . | . . . Trap Hack Attempts . | . . . Triggered . | . . . Disarmed . | . . . Reprogrammed . | . . . Reused . | . . . Traps Extracted . | . . . Installed . | . . . Triggered . | . . . Machines | -11 -10 -10 ---------- Run | Scr Mat Min Machines Disabled . | . . . Max in Single Turn . | . . . Machines Sabotaged . | . . . Garrisons Compromised . | . . . Overloaded Fab Kills . | . . . Hacking | -11 -10 -10 --------- Run | Scr Mat Min Machines Accessed 4 | . 4 . Terminals 4 | . 4 . Fabricators . | . . . Repair Stations . | . . . Recycling Units . | . . . Scanalyzers . | . . . Garrison Access . | . . . Total Hacks 11 | . 11 . Successful 7 | . 7 . Failed 4 | . 4 . Catastrophic 1 | . 1 . Database Lockouts . | . . . Manual 8 | . 8 . Terminals 11 | . 11 . Fabricators . | . . . Repair Stations . | . . . Recycling Units . | . . . Scanalyzers . | . . . Garrison Access . | . . . Terminal Hacks 4 | . 4 . Robot Analysis 1 | . 1 . Prototype ID Bank 1 | . 1 . Branch Access Points 1 | . 1 . Zone Layout 1 | . 1 . Fabricator Hacks . | . . . Repair Station Hacks . | . . . Recycling Unit Hacks . | . . . Scanalyzer . | . . . Garrison Access Hacks . | . . . Unauthorized Hacks 3 | . 3 . Terminals 3 | . 3 . Botnet 3 | . 3 . Fabricators . | . . . Repair Stations . | . . . Recycling Units . | . . . Scanalyzers . | . . . Garrison Access . | . . . Data Cores Recovered . | . . . Used . | . . . Hacking Detections 3 | . 3 . Full Trace Events 1 | . 1 . Feedback Events . | . . . Feedback Blocked . | . . . Robot Schematics Acquired . | . . . Robots Built . | . . . Authchips . | . . . Time . | . . . Total Robot Build Rating . | . . . Part Schematics Acquired . | . . . Parts Built . | . . . Authchips . | . . . Time . | . . . Total Part Build Rating . | . . . Parts Repaired . | . . . Time . | . . . Parts Recycled . | . . . Recycled Matter . | . . . Retrieved Matter . | . . . Retrieved Components . | . . . Parts Scanalyzed . | . . . Part Schematics Acquired . | . . . Parts Damaged . | . . . Bothacking | -11 -10 -10 ------------ Run | Scr Mat Min Used RIF Installer . | . . . Robots Hacked . | . . . Non-combat . | . . . Combat . | . . . Robot Hacks Applied . | . . . Relay Couplers Released . | . . . Fabnet Peak Effective % . | . . . Robots Rewired . | . . . Allies Hacked . | . . . Hacks Repelled . | . . . Allies | -11 -10 -10 -------- Run | Scr Mat Min Total Allies . | . . . Largest Group . | . . . Highest-Rated Group . | . . . Highest-Rated Ally . | . . . Total Orders . | . . . Ally Attacks . | . . . Total Damage . | . . . Kills . | . . . Allies Corrupted . | . . . Allies Melted . | . . . Intel | -11 -10 -10 ------- Run | Scr Mat Min Robot Analysis Total 1 | . 1 . Derelict Logs Recovered . | . . . Drone Launches . | . . . Drone Recoveries . | . . . Exploration | -11 -10 -10 ------------- Run | Scr Mat Min Turns Passed 1121 | . 1117 4 Spaces Moved 628 | 1 626 1 Core . | . . . Treads . | . . . Legs 197 | 1 196 . Wheels 431 | . 430 1 Hover . | . . . Flight . | . . . Fastest Speed 100 | 120 100 130 Average Speed 127 | 120 127 130 Slowest Speed 190 | 120 190 130 Overloaded Moves . | . . . Propulsion Burnouts . | . . . Robots Hopped . | . . . Cave-ins Triggered . | . . . Exploration Rate (%) 32 | 2 91 3 Regions Visited 2 Branch Regions 1 Pre-discovered Areas . | . . . Known Exits Taken 1 | . 1 . Unknown Exits Taken 1 | 1 . . Scrap Searched . | . . . Spaces Dug 3 | . 3 . Terrain Destroyed 3 | . 3 . Melee 3 | . 3 . Projectile . | . . . AOE . | . . . Terrain Rammed . | . . . Walls Destroyed . | . . . Machines Disabled . | . . . Actions | -11 -10 -10 --------- Run | Scr Mat Min Total 807 | . 805 2 Wait 77 | . 77 . Move 626 | . 625 1 Hop . | . . . Pick Up 11 | . 11 . Fast Attach 4 | . 4 . Attach 2 | . 2 . Detach 1 | . 1 . Swap 9 | . 9 . Drop 6 | . 6 . Fire 3 | . 3 . Melee 68 | . 67 1 Ram . | . . . Kick . | . . . Crush . | . . . Escape Stasis . | . . . Rewire . | . . . Trap . | . . . Miscellaneous . | . . . Route ------- -11/Scrapyard -10/Materials (discovered 3 exits: [*Mat x2] / *Min) -10/Mines History --------- Turn | Location | Event 1 | -11/Scrapyard | Discovered new exit (range 0) 1 | -11/Scrapyard | Entered Materials 317 | -10/Materials | Build established: Mutant 491 | -10/Materials | Discovered new exit (range 14) 695 | -10/Materials | Core integrity fell below 50% 751 | -10/Materials | Lost 3 parts (2p1u) 871 | -10/Materials | Discovered new exit (range 5) 873 | -10/Materials | Core integrity fell below 20% 996 | -10/Materials | Identified exit to Mines 1118 | -10/Materials | Entered Mines 1122 | -10/Mines | Destroyed by G-47 Trooper with Particle Gun Last Messages --------------- X-57's optimal range, giving other units an opportunity to flank them. >>Access(Branch) Found 1 branch access point: (8,13) Mines Map updated. 00996_ Connecting with Terminal... 01035_ Sneak attack on T-07 Excavator. 01035_ Destroyed Imp. Terrain Scanner. 01035_ Destroyed Wheel. 01035_ T-07 Excavator system corrupted by crushing effect. 01035_ T-07 Excavator knocked back. 01036_ T-07 Excavator system terminally corrupted. 01036_ Wheel fried. 01036_ K-01 Serf collects debris. 01069_ Sneak attack on K-01 Serf. 01069_ K-01 Serf destroyed. 01084_ R-06 Scavenger collects Lgt. Ion Engine. 01088_ R-06 Scavenger collects Wheel. LOCATION=MINES GOAL=ESCAPE Map ----- +----------------------------------------------------+ | ???????????????????????????????????? | | ???????????????????????????????????? | | ???????????????????????????????????? | | ???????????????????????????????????? | | ???????????????????????????????????? | | ???????????????????????????????????? | | ???????????????????????????????????? | | ???????????????????????????????????? | | ???????????????????????????????????? | | ???????????????????????????????????? | | ????????????????????????? ?????????? | | ????????????????????????? ?????????? | | ????????????????????????? ?????????? | | ????????????????????????? ?????????? | | ????????????????????????? ?????????? | | ????????????????????????? ?????????? | | ????????????????????????? ?????????? | | ????????????????????????# #????????? | | ????????????????????????# #????????? | | ????????????????????????# #????????? | | ????????????????????????# #????????? | | ????????????????????????# #????????? | | ????????????????????????# #????????? | | ????????????????????????# #????????? | | ??????????????????????### ###??????? | | ??????????????????????# @g #??????? | | ??????????????????????# g #??????? | | ??????????????????????# #??????? | | ??????????????????????# #??????? | | ????????????????????? #??????? | | ????????????????????### #??????? | | ??????????????????????## ####??????? | | ??????????????????????? ??????????? | | ???????????????????????# ??????????? | | ???????????????????????# ??????????? | | ???????????????????????# ??????????? | | ???????????????????????# ??????????? | | ??????????????????????? ??????????? | | ??????????????????????? ???????????? | | ???????????????????????#???????????? | | ???????????????????????????????????? | | ???????????????????????????????????? | | ???????????????????????????????????? | | ???????????????????????????????????? | | ???????????????????????????????????? | | ???????????????????????????????????? | | | | | | | | | +----------------------------------------------------+ Best States ------------- Heat Dissipation 25 Energy Generation 10 Energy Capacity 250 Matter Stores 300 Matter Capacity 300 Sight Range 16 Terrain Scan Density 10 Additional Mass Support 6 Evasion (%) 55 Item Schematics ----------------- None Robot Schematics ------------------ None Fabricated ------------ Nothing Alien Tech Used ----------------- None Achievements -------------- None Challenges ------------ None Game ------ Seed WeaponFocalReconstructor Manual? 0 Play Time 00:08:35 Cumulative 77.3 hours Start 2022.07.13 @ 16:04:58 End 2022.07.13 @ 16:14:12 Sessions 1 Manual Loads 0 Difficulty Rogue Special Mode None Game No. 115 Rogue 115 Adventurer 0 Explorer 0 Win Type - Total 1 Types 1/0/0/0/0/0/0/0/0 Lore% 41 Gallery% 46 Achievement% 38 Wizard Run 0 Options --------- ASCII 0 Keyboard 1 Movement Vi Keybinds 1 Fullscreen 1 Font 24/Smallcaps Map View 76x50 Tactical HUD 1 Map Filters NONE Filters NONE Steam 1 RUN: b62503ff-0d7f-4200-a0e1-747f5cbfba0c